Cogmind - Beta 15 @@@ ROGUE MODE // 2025.09.05 @ 19:58:53 Player: k1ll3rb0t Result: Self-destructed Performance ------------- Evolutions (6) 3000 Regions Visited (7) 1400 Robots Destroyed (57) 285 Value Destroyed (3040) 3040 Prototype IDs (16) 320 Alien Tech Used (0) 0 Bonus (1743) 1743 TOTAL SCORE: 9788 Bonus ------- High Alert Combat Kills 141 Follower Combat Kills 302 Entered DSFs 500 Registered with UFD 300 Met Optimus in HQ 500 Cogmind --------- Core Integrity 73/1150 Matter 198/300 Energy 97/100 System Corruption 13% Temperature Cool (0) Movement Core (50) Location -4/Factory Parts ------- > --- POWER (2) -------- (None) > --- PROPULSION (6) --- (None) > --- UTILITY (8) ------ Advanced Signal Interpreter Graphene Brace A0-MCA's Component Scanner > --- WEAPON (3) ------- (None) > --- INVENTORY (5) ---- Scrap Suit Energy Well (24) Advanced Sensor Array Mapping Drone Bay (3/3) Peak State ------------ > --- POWER ------------ Angular Momentum Engine Reinforced Fission Core > --- PROPULSION ------- Light Treads Light Treads Armored Treads Armored Medium Treads Armored Medium Treads Armored Medium Treads > --- UTILITY ---------- Improved Cryofiber Web Advanced Heat Sink Advanced Cooling System Huge Storage Unit Advanced Signal Interpreter Improved Target Analyzer Improved Medium Armor Plating Advanced Thermal Shield > --- WEAPON ----------- Advanced Plasma Cannon Advanced Plasma Cannon Heavy Phase Cannon > --- INVENTORY -------- Neutrino Core Reinforced Fission Core Overtuned Huge Scrapsphere Overtuned Huge Scrapsphere Scrap Suit Improved Cryofiber Web Advanced Cooling System Improved Coolant Injector Energy Well Improved Sensor Array Advanced Sensor Array Graphene Brace Improved Hacking Suite A0-MCA's Component Scanner Mapping Drone Bay Long-range Proton Cannon Long-range Proton Cannon Advanced Plasma Cannon Advanced Plasma Cannon Advanced Plasma Cannon Hypervelocity Gauss Cannon Katana [Rating: 104] Favorites ----------- Power Light Angular Momentum Engine Engine Light Angular Momentum Engine Power Core Fusion Compressor Reactor Light Quantum Reactor Propulsion Light Treads Treads Light Treads Wheel Overtuned Huge Scrapsphere Hover Unit Antigrav System Utility Structural Scanner Device Structural Scanner Storage High-capacity Storage Unit Processor Improved Target Analyzer Protection Improved Medium Armor Plating Weapon Powered Cannon Energy Cannon Powered Cannon Ballistic Gun Light Assault Rifle Ballistic Cannon Advanced Assault Cannon Launcher Subdweller Shrapnel Launcher Special Weapon CPS Tube Slashing Weapon Katana Build | -11 -10 -10 -8 -6 -6 -5 -4 ------- Run | Yrd Mat Sub Scr Fac DSF Fac Fac Slots Evolved 12 | . . . . 8 . 2 2 Power 1 | . . . . . . 1 . Propulsion 4 | . . . . 2 . . 2 Utility 6 | . . . . 5 . 1 . Weapon 1 | . . . . 1 . . . Parts Attached 93 | 6 5 13 6 7 10 21 25 Power 15 | 1 1 2 3 . 2 2 4 Engine 9 | 1 1 2 2 . 2 . 1 Core 5 | . . . 1 . . 2 2 Reactor 1 | . . . . . . . 1 Propulsion 21 | 2 . 3 2 2 2 7 3 Treads 17 | 2 . 3 1 2 2 7 . Leg . | . . . . . . . . Wheel 3 | . . . 1 . . . 2 Hover 1 | . . . . . . . 1 Flight . | . . . . . . . . Utility 30 | 1 3 1 1 4 5 6 9 Device 14 | . 2 . . 2 4 1 5 Storage 5 | 1 1 . 1 . 1 . 1 Processor 5 | . . . . . . 2 3 Hackware . | . . . . . . . . Protection 6 | . . 1 . 2 . 3 . Artifact . | . . . . . . . . Weapon 27 | 2 1 7 . 1 1 6 9 Energy Gun . | . . . . . . . . Energy Cannon 11 | . . 2 . . . 2 7 Ballistic Gun 4 | 2 . 2 . . . . . Ballistic Cannon 8 | . . 2 . 1 . 4 1 Launcher 1 | . . 1 . . . . . Special Weapon 2 | . 1 . . . 1 . . Impact Weapon . | . . . . . . . . Slashing Weapon 1 | . . . . . . . 1 Piercing Weapon . | . . . . . . . . Special Melee Weapon . | . . . . . . . . Unidentified Prototypes 1 | . . 1 . . . . . Parts Lost 54 | . 1 . . . 2 21 30 Power 9 | . 1 . . . 2 2 4 Propulsion 15 | . . . . . . 6 9 Utility 13 | . . . . . . 6 7 Weapon 17 | . . . . . . 7 10 Highest Loss Streak 30 | . 1 . . . 2 7 30 To Critical Strikes 1 | . . . . . . . 1 Average Backups 13 | 4 7 5 12 11 14 16 19 Power 1 | . 1 . . 1 1 1 2 Propulsion 2 | 2 4 2 2 2 2 3 1 Utility 5 | . . 2 5 3 5 7 10 Weapon 3 | 1 1 1 2 2 4 4 5 Tool/Special . | . . . . . . . . Unused Backups 18 | . 5 . 3 . 2 . 8 Power . | . . . . . . . . Propulsion 5 | . 4 . . . 1 . . Utility 8 | . . . 3 . . . 5 Weapon 4 | . 1 . . . . . 3 Tool/Special 1 | . . . . . 1 . . Average Slot Usage (%) 80 | . 94 81 76 77 83 76 93 Engine 9 | . 13 13 12 6 6 2 4 Core 2 | . . . 1 6 1 4 4 Treads 25 | . 28 27 25 23 25 20 27 Device 13 | . 9 . 11 17 17 20 16 Storage 8 | . 14 . 11 6 6 5 5 Processor 1 | . . . . . . 2 12 Protection 2 | . . 13 . 5 11 3 4 Energy Cannon 8 | . . 2 12 6 6 3 11 Ballistic Gun 2 | . 27 11 . . . . . Ballistic Cannon 2 | . . 6 . 5 4 7 2 Peak Build Rating 104 | 6 8 26 35 59 69 87 104 Average Rating 41 | 4 6 13 28 55 58 69 95 On Entrance 35 | . 6 8 26 35 57 69 80 Naked Turns . | . . . . . . . . Heaviest Build 156 | 11 27 39 64 85 120 146 156 Greatest Support 141 | 40 40 40 40 84 84 103 141 Greatest Overweight (x) 1 | . . . 1 1 1 1 1 Average Overweight (x) . | . . . . . . 1 . Largest Inventory Capacity 25 | 8 15 15 20 20 25 25 25 Average Capacity 17 | 6 9 5 17 20 20 25 23 Most Carried 25 | 7 10 10 20 18 22 25 25 Average Carried 14 | 4 7 5 14 13 16 16 22 Final Capacity 25 | 8 15 5 20 20 25 25 5 Final Carried 22 | 6 10 5 20 14 22 21 5 Class Distribution -------------------- 69% | Mutant 6% | Gunner 4% | Scavenger-Tank 4% | Derelict-Tank 3% | Derelict-Skirmisher Dominant Class ---------------- Mutant | -10/Materials Mutant | -10/Subcaves Mutant | -8/Scraptown Derelict-Skirmisher | -6/Factory Derelict-Tank | -6/DSF Derelict-Skirmisher | -5/Factory Gunner | -4/Factory Resources | -11 -10 -10 -8 -6 -6 -5 -4 ----------- Run | Yrd Mat Sub Scr Fac DSF Fac Fac Matter Collected 2624 | 199 206 390 110 . 362 1265 92 Remotely . | . . . . . . . . Salvage Created 3029 | . 140 231 . . 787 1376 495 Parts 153 | . 9 13 . . 33 63 35 Haulers Intercepted 1 | . . . . . 1 . . Recyclers Shooed 1 | . 1 . . . . . . Parts Field Recycled . | . . . . . . . . Retrieved Matter . | . . . . . . . . Parts Self-Destructed 3 | . . 3 . . . . . Prevented . | . . . . . . . . Kills | -11 -10 -10 -8 -6 -6 -5 -4 ------- Run | Yrd Mat Sub Scr Fac DSF Fac Fac Combat Hostiles Destroyed 51 | . 5 6 . . 11 23 6 Melee 1 | . . . . . . . 1 Guns 5 | . 5 . . . . . . Cannons 34 | . . 2 . . 9 19 4 AOE 6 | . . 4 . . . 1 1 Classes Destroyed 15 | . 2 1 . . 4 7 1 Worker 2 | . . . . . . 1 1 Hauler 1 | . . . . . 1 . . Recycler 2 | . . . . . . 2 . Mechanic 1 | . . . . . . 1 . Swarmer 8 | . 3 . . . 3 2 . Grunt 21 | . 2 1 . . 4 12 2 Brawler 3 | . . . . . 1 2 . Duelist 1 | . . . . . . 1 . Sentry 1 | . . . . . . 1 . Specialist 2 | . . . . . 2 . . Hunter 3 | . . . . . . 2 1 Programmer 4 | . . . . . . 2 2 Heavy 2 | . . . . . 1 1 . Executioner 1 | . . . . . . . 1 Subdweller 5 | . . 5 . . . . . Best Kill Streak 6 | . 3 3 . . 4 6 2 Combat Bots Only 6 | . 3 3 . . 4 6 1 Max Kills in Single Turn 2 | . 1 1 . . 1 2 1 Gunslinging . | . . . . . . . . Exploded 1 | . . 1 . . . 1 1 Melee 1 | . . . . . . . 1 Uniques/NPCs Destroyed . | . . . . . . . . Combat | -11 -10 -10 -8 -6 -6 -5 -4 -------- Run | Yrd Mat Sub Scr Fac DSF Fac Fac Hostile Shots Fired 939 | . 48 30 . . 59 323 479 Missed 291 | . 15 10 . . 16 88 162 Hits 648 | . 33 20 . . 43 235 317 Melee 5 | . . . . . . 5 . Projectile 643 | . 33 20 . . 43 230 317 AOE 4 | . . 1 . . . 3 . Critical Strikes 32 | . . . . . 1 11 20 Actively Blocked 22 | . . . . . . 6 16 Part Disruptions 4 | . . . . . . . 4 Damage Taken 13492 | . 307 551 . . 1080 6242 5312 Core 1819 | . 37 89 . . 69 547 1077 Absorbed by Shields . | . . . . . . . . Ignored by Resistances 226 | . . . . . . . 226 Regen/Repaired (Parts) 34 | . . . . . 24 10 . Core Remaining (%) 71 | 100 . . 49 . 91 45 . Volleys Fired 199 | . 30 17 . 5 40 78 29 Largest 3 | . 2 2 . 1 2 3 3 Hottest 294 | . 120 73 . 40 77 178 294 Shots Fired 380 | . 57 33 . 5 72 158 55 Gun 66 | . 56 10 . . . . . Cannon 301 | . . 17 . 5 71 153 55 Launcher 10 | . . 6 . . . 4 . Special 3 | . 1 . . . 1 1 . Kinetic 232 | . 56 33 . . 31 107 5 Thermal 139 | . 1 . . 5 40 50 43 Explosive . | . . . . . . . . Electromagnetic 7 | . . . . . . . 7 Robot Hit Streak 11 | . 5 7 . 2 7 11 7 Robot Miss Streak 5 | . 2 4 . 3 5 4 3 Penetration Max 1 | . . . . . . 1 . Secondary Targets . | . . . . . . . . Shots Hit Robots 228 | . 31 19 . 2 43 102 31 Core Hits 148 | . 11 15 . . 33 53 36 Critical Kills 7 | . . . . . 2 4 1 Critical Parts Destroyed 1 | . . . . . . . 1 Critical Strikes 13 | . . 1 . . 2 7 3 Meltdown 6 | . . . . . 2 4 . Destroy 2 | . . . . . . . 2 Blast 5 | . . 1 . . . 3 1 Melee Attacks 5 | . . . . . . . 5 Impact . | . . . . . . . . Slashing 5 | . . . . . . . 5 Piercing . | . . . . . . . . Sneak Attacks . | . . . . . . . . Combat Hostiles . | . . . . . . . . Follow-up Attacks . | . . . . . . . . Damage Inflicted 8802 | . 337 726 . 89 1629 4406 1615 Guns 396 | . 337 59 . . . . . Cannons 6984 | . . 179 . 89 1629 3979 1108 Explosions 1284 | . . 488 . . . 408 388 Melee 99 | . . . . . . . 99 Ramming 39 | . . . . . . 19 20 Kinetic 4578 | . 337 726 . . 555 2867 93 Thermal 3498 | . . . . 89 1074 1520 815 Explosive . | . . . . . . . . Electromagnetic 588 | . . . . . . . 588 Impact . | . . . . . . . . Slashing 99 | . . . . . . . 99 Piercing . | . . . . . . . . Highest Corruption 13 | . 1 1 . . . 8 13 Average Corruption 4 | . 1 1 . . . 7 8 Corruption Purged . | . . . . . . . . Corruption Blocked . | . . . . . . . . Effects 31 | . 2 2 . . . 23 4 Message Errors 6 | . . . . . . 4 2 Matter Fused 9 | . 1 . . . . 8 . Heat Flow Errors 3 | . . 1 . . . 2 . Energy Discharges 3 | . 1 . . . . 2 . Data Loss (minor) 5 | . . 1 . . . 3 1 Alerts 3 | . . . . . . 3 . Misdirections 1 | . . . . . . . 1 Weapon Failures 1 | . . . . . . 1 . Overload Shots . | . . . . . . . . Overflow Damage 249 | . . . . 10 69 147 23 Projectiles 242 | . . . . 10 69 140 23 Explosions 7 | . . . . . . 7 . Melee . | . . . . . . . . Knockbacks 20 | . . 2 . . 5 11 2 Impact . | . . . . . . . . Kinetic 16 | . . 1 . . 5 9 1 Secondary 4 | . . 1 . . . 2 1 Self-Inflicted Damage 33 | . . 19 . . . 6 8 Shots 2 | . . 1 . . . 1 . Rammed 11 | . . . . . . 3 8 Targets Rammed 11 | . . . . . . 3 8 Kicked . | . . . . . . . . Crushed . | . . . . . . . . Highest Temperature 89 | . 32 89 . 30 42 36 32 Average Temperature 16 | . 14 50 . 15 11 19 20 Received Heat Transfer 1655 | . 54 129 . . 108 811 553 Siege Activations . | . . . . . . . . Martial Activations . | . . . . . . . . Shielding Activations . | . . . . . . . . Robots Disrupted 1 | . . . . . . . 1 Combat Hostiles 1 | . . . . . . . 1 Robots Corrupted . | . . . . . . . . Combat Hostiles . | . . . . . . . . Parts Fried 4 | . . . . . . . 4 Impact Corruptions . | . . . . . . . . Robots Melted 7 | . . . . . 3 4 . Combat Hostiles 5 | . . . . . 2 3 . Parts Melted 12 | . . 3 . . 4 5 . Heat Transferred 1522 | . . . . . . 637 885 Parts Sabotaged . | . . . . . . . . Parts Stolen . | . . . . . . . . Parts Stripped . | . . . . . . . . Power Chain Reactions 1 | . . . . . . . 1 Alert | -11 -10 -10 -8 -6 -6 -5 -4 ------- Run | Yrd Mat Sub Scr Fac DSF Fac Fac Maximum Alert Level 2 | . . . . . 1 2 2 Low Security (%) 49 | 100 100 . . 100 78 38 3 Level 1 27 | . . . . . 21 10 72 Level 2 23 | . . . . . . 51 23 Level 3 . | . . . . . . . . Level 4 . | . . . . . . . . Level 5 . | . . . . . . . . High Security . | . . . . . . . . Max Security . | . . . . . . . . Sterilizations 1 | . . . . . 1 . . Peak Influence 678 | . 50 . . 1 293 678 536 Initial 325 | . . . . . . 153 325 Average 239 | . 10 . . . 134 362 335 Influence Increases 2339 | . 143 20 . 2 313 1182 679 Destroy 0b10 Robot/C 1040 | . 100 20 . . 220 520 180 Destroy 0b10 Robot/NC 45 | . . . . . 10 30 5 Destroy Leader 204 | . 20 . . . 30 114 40 Allied During Kill 72 | . . . . . . 42 30 Successful Hack 21 | . 7 . . . . 14 . Disable Machine 405 | . . . . . 15 75 315 Anti-Garrison Action 150 | . . . . . . 150 . Destroy Structure 207 | . 1 . . 2 8 132 64 Partial Spotted 15 | . 15 . . . . . . Lose Combat Pursuer 180 | . . . . . 30 105 45 Influence Decreases 2049 | . 133 30 . 2 20 810 1054 Entered New Map 486 | . . 6 . . . 140 340 Time Decay 963 | . 123 24 . 2 . 440 374 Lost Part 540 | . 10 . . . 20 210 300 Lost Ally 60 | . . . . . . 20 40 Squads Dispatched 20 | . 2 . . . 1 11 6 Investigation 2 | . 1 . . . . 1 . Extermination 4 | . . . . . . 2 2 Reinforcement 6 | . 1 . . . 1 2 2 Assault 2 | . . . . . . 2 . Garrison 6 | . . . . . . 4 2 Intercept . | . . . . . . . . Searches Triggered . | . . . . . . . . Construction Impeded . | . . . . . . . . Haulers Reinforced 1 | . . . . . . . 1 Active Scanning Responses . | . . . . . . . . Cargo Convoy Interrupts 1 | . . . . . . . 1 Stealth | -11 -10 -10 -8 -6 -6 -5 -4 --------- Run | Yrd Mat Sub Scr Fac DSF Fac Fac Distress Signals 2 | . 1 . . . . 1 . Communications Jammed . | . . . . . . . . Distress Signals . | . . . . . . . . Times Spotted 127 | . 14 17 . . 13 48 35 Peak Tracking Total 16 | . 4 10 . . 5 8 16 Tactical Retreats 10 | . . . . . 2 6 2 Traps | -11 -10 -10 -8 -6 -6 -5 -4 ------- Run | Yrd Mat Sub Scr Fac DSF Fac Fac Traps Triggered 1 | . 1 . . . . . . Indirectly . | . . . . . . . . Trap Hack Attempts . | . . . . . . . . Triggered . | . . . . . . . . Disarmed . | . . . . . . . . Reprogrammed . | . . . . . . . . Reused . | . . . . . . . . Traps Extracted . | . . . . . . . . Installed 1 | . . . . . 1 . . Triggered . | . . . . . . . . Most Traps Carried 2 | . . . 2 2 2 . . Machines | -11 -10 -10 -8 -6 -6 -5 -4 ---------- Run | Yrd Mat Sub Scr Fac DSF Fac Fac Machines Disabled 28 | . . . . . 1 6 21 Max in Single Turn 6 | . . . . . 1 2 6 Garrison Access 1 | . . . . . . 1 . Machines Repaired . | . . . . . . . . Machines Dismantled . | . . . . . . . . Machines Sabotaged . | . . . . . . . . Overloaded Fab Kills . | . . . . . . . . Hacking | -11 -10 -10 -8 -6 -6 -5 -4 --------- Run | Yrd Mat Sub Scr Fac DSF Fac Fac Machines Accessed 16 | . 4 . 8 1 . 3 . Terminals 5 | . 3 . . 1 . 1 . Fabricators . | . . . . . . . . Repair Stations . | . . . . . . . . Recycling Units 2 | . 1 . . . . 1 . Scanalyzers . | . . . . . . . . Garrison Access 1 | . . . . . . 1 . Total Hacks 61 | . 12 . 43 2 . 4 . Successful 49 | . 3 . 43 1 . 2 . Failed 12 | . 9 . . 1 . 2 . Catastrophic 3 | . 2 . . . . 1 . Database Lockouts . | . . . . . . . . Manual 8 | . 7 . . . . 1 . Terminals 15 | . 11 . . 2 . 2 . Fabricators . | . . . . . . . . Repair Stations . | . . . . . . . . Recycling Units 2 | . 1 . . . . 1 . Scanalyzers . | . . . . . . . . Garrison Access 1 | . . . . . . 1 . Terminal Hacks 47 | . 2 . 43 1 . 1 . Record 38 | . . . 38 . . . . Robot Analysis 4 | . . . 4 . . . . Open DSF 1 | . . . . 1 . . . Locate Traps 3 | . 2 . . . . 1 . Proto ID Catalog 1 | . . . 1 . . . . Fabricator Hacks . | . . . . . . . . Repair Station Hacks . | . . . . . . . . Recycling Unit Hacks . | . . . . . . . . Scanalyzer . | . . . . . . . . Garrison Access Hacks . | . . . . . . . . Unauthorized Hacks 2 | . 1 . . . . 1 . Terminals . | . . . . . . . . Fabricators . | . . . . . . . . Repair Stations . | . . . . . . . . Recycling Units 2 | . 1 . . . . 1 . Reject 1 | . 1 . . . . . . Scrapoids 1 | . . . . . . 1 . Scanalyzers . | . . . . . . . . Garrison Access . | . . . . . . . . Data Cores Recovered . | . . . . . . . . Used . | . . . . . . . . Hacking Detections 6 | . 3 . . 1 . 2 . Full Trace Events 1 | . 1 . . . . . . Feedback Events 1 | . 1 . . . . . . Corruption 1 | . 1 . . . . . . Feedback Blocked . | . . . . . . . . Robot Schematics Acquired . | . . . . . . . . Robots Built . | . . . . . . . . Authchips . | . . . . . . . . Time . | . . . . . . . . Total Robot Build Rating . | . . . . . . . . Part Schematics Acquired . | . . . . . . . . Parts Built . | . . . . . . . . Authchips . | . . . . . . . . Time . | . . . . . . . . Total Part Build Rating . | . . . . . . . . Parts Repaired . | . . . . . . . . Time . | . . . . . . . . Parts Recycled . | . . . . . . . . Recycled Matter . | . . . . . . . . Retrieved Matter . | . . . . . . . . Retrieved Components . | . . . . . . . . Parts Scanalyzed . | . . . . . . . . Part Schematics Acquired . | . . . . . . . . Parts Damaged . | . . . . . . . . Bothacking | -11 -10 -10 -8 -6 -6 -5 -4 ------------ Run | Yrd Mat Sub Scr Fac DSF Fac Fac Used RIF Installer . | . . . . . . . . Robots Hacked . | . . . . . . . . Non-combat . | . . . . . . . . Combat . | . . . . . . . . Robot Hacks Applied . | . . . . . . . . Relay Couplers Released 2 | . . . . . . 2 . Machine Destruction 2 | . . . . . . 2 . Fabnet Peak Effective % . | . . . . . . . . Robots Rewired . | . . . . . . . . Allies Hacked . | . . . . . . . . Hacks Repelled . | . . . . . . . . Allies | -11 -10 -10 -8 -6 -6 -5 -4 -------- Run | Yrd Mat Sub Scr Fac DSF Fac Fac Total Allies 5 | . . . . . . 5 . Largest Group 4 | . . . . . . 4 4 Highest-Rated Group 188 | . . . . . . 188 188 Highest-Rated Ally 47 | . . . . . . 47 47 Total Orders . | . . . . . . . . Ally Attacks 88 | . . . . . . 37 51 Total Damage 1853 | . . . . . . 858 995 Kills 9 | . . . . . . 5 4 Allies Corrupted . | . . . . . . . . Allies Melted . | . . . . . . . . Intel | -11 -10 -10 -8 -6 -6 -5 -4 ------- Run | Yrd Mat Sub Scr Fac DSF Fac Fac Active Infowar (turns) 6170 | . 360 2 4027 71 571 436 703 Sensors 1202 | . . . . 66 . 433 703 Structural 5312 | . 221 2 4027 71 571 420 . Seismic 139 | . 139 . . . . . . Robot Analysis Total 4 | . . . 4 . . . . Derelict Logs Recovered 3 | . . 1 2 . . . . Drone Launches . | . . . . . . . . Drone Recoveries . | . . . . . . . . Exploration | -11 -10 -10 -8 -6 -6 -5 -4 ------------- Run | Yrd Mat Sub Scr Fac DSF Fac Fac Turns Passed 7831 | 76 535 524 4088 71 571 1088 878 Spaces Moved 3528 | 42 256 272 2090 36 192 317 323 Core 17 | 5 . . . . . . 12 Treads 3481 | 37 256 272 2090 36 192 317 281 Legs . | . . . . . . . . Wheels 19 | . . . . . . . 19 Hover 11 | . . . . . . . 11 Flight . | . . . . . . . . Fastest Speed 50 | 50 160 160 160 152 152 237 50 Average Speed 195 | 146 160 160 193 154 213 245 222 Slowest Speed 250 | 160 160 160 250 237 241 250 246 Overloaded Moves . | . . . . . . . . Propulsion Burnouts . | . . . . . . . . Robots Hopped . | . . . . . . . . Potential Cave-ins . | . . . . . . . . Cave-ins Triggered . | . . . . . . . . Exploration Rate (%) 35 | 4 50 27 92 1 84 14 12 Regions Visited 7 Branch Regions 2 Pre-discovered Areas 2 | . . 1 1 . . . . Known Exits Taken 1 | . . . . 1 . . . Unknown Exits Taken 5 | 1 1 1 1 . . 1 . Scrap Searched 12 | . . . 12 . . . . Spaces Dug 14 | . 1 . . . . 2 11 Terrain Destroyed 166 | . 1 64 . 2 8 69 22 Melee . | . . . . . . . . Projectile 55 | . 1 . . 2 8 27 17 AOE 111 | . . 64 . . . 42 5 Terrain Rammed . | . . . . . . . . Walls Destroyed . | . . . . . . . . Machines Disabled . | . . . . . . . . Actions | -11 -10 -10 -8 -6 -6 -5 -4 --------- Run | Yrd Mat Sub Scr Fac DSF Fac Fac Total 4086 | 54 329 329 2133 49 292 473 427 Wait 71 | . 24 1 . . 21 23 2 Move 3521 | 41 255 271 2089 35 191 316 323 Hop . | . . . . . . . . Pick Up 96 | 7 10 4 23 1 16 20 15 Fast Attach 19 | 5 . 5 1 . 2 4 2 Attach 58 | 1 2 . 3 7 3 21 21 Detach 3 | . . . . 1 . 1 1 Swap 47 | . 3 11 8 . 8 7 10 Drop 48 | . 5 13 9 . 10 . 11 Fire 199 | . 30 17 . 5 40 78 29 Melee 5 | . . . . . . . 5 Ram 7 | . . . . . . . 7 Kick . | . . . . . . . . Crush 4 | . . . . . . 3 1 Escape Stasis . | . . . . . . . . Rewire . | . . . . . . . . Trap 1 | . . . . . 1 . . Miscellaneous 7 | . . 7 . . . . . Route ------- -11/Scrapyard -10/Materials (discovered 3 exits: [*Mat] / [*Min] / [*Sub]) -10/Subcaves -8/Scraptown (discovered 2 exits: *Fac x2) -6/Factory (discovered 2 exits: Ext / DSF) -6/DSF -5/Factory -4/Factory History --------- Turn | Location | Event 2 | -11/Scrapyard | Met Revision 17 39 | -11/Scrapyard | Discovered new exit (range 16) 77 | -11/Scrapyard | Entered Materials 229 | -10/Materials | Discovered new exit (range 13) 311 | -10/Materials | Build established: Mutant 392 | -10/Materials | Discovered new exit (range 5) 416 | -10/Materials | Discovered new exit (range 7) 612 | -10/Materials | Entered Subcaves 613 | -10/Subcaves | Approached by a straggling Scientist 649 | -10/Subcaves | Learned location of Zion (-7) 765 | -10/Subcaves | Shifting Twisted Machinery released Battle Cannon 777 | -10/Subcaves | Shifting Twisted Machinery released Spk. Treads 786 | -10/Subcaves | Ambushed by swarm of Subdwellers 939 | -10/Subcaves | Ambushed by Subdweller buried in earth 1000 | -10/Subcaves | A Subdweller sparked back to life 1000 | -10/Subcaves | A Subdweller sparked back to life 1000 | -10/Subcaves | A Subdweller sparked back to life 1011 | -10/Subcaves | Core integrity fell below 50% 1044 | -10/Subcaves | Found Prototype Energy Cannon 1044 | -10/Subcaves | Identified Powered Cannon 1045 | -10/Subcaves | Attached Powered Cannon, gained temporary slot: Power 1133 | -10/Subcaves | Scientist uncovered a shortcut to Scraptown 1136 | -10/Subcaves | Entered Scraptown 1136 | -8/Scraptown | System corruption cleaned by C-Scrubber 1448 | -8/Scraptown | Discovered new exit (range 5) 1499 | -8/Scraptown | Scanned Subdweller tech in exchange for log data 1505 | -8/Scraptown | Learned location of Armory (-4) 1550 | -8/Scraptown | Visited Cyclists 1584 | -8/Scraptown | Visited Assassins FH 1612 | -8/Scraptown | Visited IN-MT5's Study 1648 | -8/Scraptown | Visited Awakened 1705 | -8/Scraptown | Visited UFD Registry 1705 | -8/Scraptown | Registered with UFD as "Alphadriver" 1731 | -8/Scraptown | Visited Science Testing Area 2052 | -8/Scraptown | Visited Bundlers 2415 | -8/Scraptown | Entered Cyclist Reading Room 2467 | -8/Scraptown | Visited Fellowship of the Rings 2666 | -8/Scraptown | Visited Scrap Suit Storage 2679 | -8/Scraptown | Found Scrap Suit 2736 | -8/Scraptown | Visited Cartography Club 3187 | -8/Scraptown | Visited Curators Association 3241 | -8/Scraptown | Visited A0-MCA Data Center 3251 | -8/Scraptown | Given a B rating by A0-MCA 3260 | -8/Scraptown | Found A0-MCA's Component Scanner 3309 | -8/Scraptown | Visited Junk Repository 3371 | -8/Scraptown | Visited DA-N13 Charitable Foundation 3394 | -8/Scraptown | Found DCF Scrap (29 items) 3523 | -8/Scraptown | Visited Scrapoid Pod Storage 3536 | -8/Scraptown | Found Scrapoid Pod 3577 | -8/Scraptown | Visited Analyses Database 3732 | -8/Scraptown | Delivered Scrap Shield to a Scientist 3956 | -8/Scraptown | Visited Science Guys 4046 | -8/Scraptown | Visited Chapter 10 5076 | -8/Scraptown | Met Optimus 5076 | -8/Scraptown | Accepted into 0bPrime 5209 | -8/Scraptown | Discovered new exit (range 5) 5224 | -8/Scraptown | Entered Factory 5224 | -6/Factory | Evolved 8 slots: Propulsion x2, Utility x5, Weapon x1 5225 | -6/Factory | Identified exit to Extension 5294 | -6/Factory | Identified exit to DSF 5295 | -6/Factory | Entered DSF 5448 | -6/DSF | Additional patrols routed to DSF 5760 | -6/DSF | Sterilization system engaged 5780 | -6/DSF | Ambient heat levels rising (+10) 5795 | -6/DSF | Ambient heat levels rising (+10) 5810 | -6/DSF | Ambient heat levels rising (+10) 5825 | -6/DSF | Ambient heat levels rising (+10) 5828 | -6/DSF | Discovered new exit (range 15) 5840 | -6/DSF | Ambient heat levels rising (+10) 5855 | -6/DSF | Ambient heat levels rising (+10) 5866 | -6/DSF | Entered Factory 5866 | -5/Factory | Evolved 2 slots: Power x1, Utility x1 6154 | -5/Factory | Garrison activated, responded to threat 6372 | -5/Factory | Lost 7 parts (1p1n3u2w) 6432 | -5/Factory | Spotted B-75 Beast 6487 | -5/Factory | Lost 4 parts (1p1n2w) 6523 | -5/Factory | Core integrity fell below 50% 6556 | -5/Factory | Lost 3 parts (2n1w) 6746 | -5/Factory | Scrapoid reinforcements arrived 6794 | -5/Factory | Allied Derelicts emerged from ambush trap array 6855 | -5/Factory | Garrison activated, responded to threat 6918 | -5/Factory | Discovered new exit (range 13) 6954 | -5/Factory | Entered another Factory area 6954 | -4/Factory | Accompanied by 4 allies 6954 | -4/Factory | Evolved 2 slots: Propulsion x2 7001 | -4/Factory | Found Scrap Suit 7072 | -4/Factory | Lost 3 allies 7368 | -4/Factory | Build established: Gunner 7677 | -4/Factory | Garrison activated, responded to threat 7696 | -4/Factory | Cargo convoy interrupted 7701 | -4/Factory | Spotted Executioner 7764 | -4/Factory | Destroyed Executioner 7769 | -4/Factory | Core integrity fell below 50% 7780 | -4/Factory | System corruption reached 10% 7819 | -4/Factory | Core integrity fell below 20% 7832 | -4/Factory | Self-destructed Last Messages --------------- disabled. 07792_ IIM:VEF9UB|Z&Q1EMGN>ZRSQLP 07795_ Penetrated by Slug. 07795_ Matter Pump disabled. 07795_ P-70 Sage destroyed. 07796_ K-01 Serf collects debris. 07798_ Acquired Antigrav System. 07802_ K-01 Serf collects debris. 07808_ Ovr. Huge Scrapsphere destroyed. 07809_ K-01 Serf collects debris. 07809_ Katana destroyed. 07810_ Dropped Imp. Coolant Injector. 07814_ Adv. Plasma Cannon destroyed. 07815_ Adv. Cooling System destroyed. 07815_ Slammed into S-27 Virus. 07819_ S-27 Virus destroyed. 07819_ K-01 Serf collects debris. 07822_ Antigrav System destroyed. 07823_ Matter Pump disabled. 07829_ Slammed into P-70 Sage. Map ----- +----------------------------------------------------+ | ??????????????????????# # """""" #? | | ??????????????????????# """ """ # """""" #? | | ??????????????????????# """ """ *# """""" #? | | ??????????????????????# """ """ |# ## | | ??????????????????????# [!%/ """""" # | | ?????????????########## """ """ !!# """" " ## | | ????????????? # """ """ # """""" ## | | ?????????????? # ""%!""" # """" " !#! | | ?????????????? # =%* # !*!%## | | ?????????????""" """ # """ # !%%%## | | ???????????? """ """ # """ #########/##### | | ?????????# """ """ " """ #???????#[==![= | | ?????????# # h #??????#!%#%|## | | ?????????# """ """ + #??????#!*#!%[# | | ?????????????""" """ ###k######+###??????##!#?# # | | ??????????????"" """ #?# #????????????#####/##### | | ?????????????? #?# #????????????# | | ?????????????? #?# #????????????# | | ?????????????##########?#p#????????????# """ | | ????????????????????????# #????????????# """ " | | ????????????????????????# #????????????# """ "% | | ???????????????????????## #????????????# " | | ???????????????????????# #????????????# | | ???????????????????????#Ts#????????????# """" " | | ???????????????????????##s#????????????#! """""" | | ????????????????????????#@#????????????# """""" | | ????????????????????????#p#????????????# """ | | ????????????????????????#A#????????????# | | ???????????????????????? #????????????########### | | ???????????????????????? #??????????????????????? | | ???????????????????????? ??????????????????????? | | ???????????????????????? ??????????????????????? | | ??????????????????????? ??????????????????????? | | ??????????????????????? #??????????????????????? | | ???????????????????????##+???????????????????????? | | ?????????????????????????????????????????????????? | | ?????????????????????????????????????????????????? | | ?????????????????????????????????????????????????? | | ?????????????????????????????????????????????????? | | ?????????????????????????????????????????????????? | | ?????????????????????????????????????????????????? | | ?????????????????????????????????????????????????? | | ?????????????????????????????????????????????????? | | ?????????????????????????????????????????????????? | | ?????????????????????????????????????????????????? | | ?????????????????????????????????????????????????? | | ?????????????????????????????????????????????????? | | ?????????????????????????????????????????????????# | | ????????????????????????????????????????????????# | | ????????????????????????????????????????????????## | +----------------------------------------------------+ Best States ------------- Heat Dissipation 112 Energy Generation 38 Energy Capacity 875 Matter Stores 300 Matter Capacity 300 Sight Range 16 Robot Scan Range 16 Terrain Scan Density 10 Base Temperature (-) 150 Armor Coverage 800 Resistance: TH 30 Evasion (%) 53 Targeting Accuracy 6 Target Analysis 9 Recoil Reduction 6 Item Schematics ----------------- None Robot Schematics ------------------ None Fabricated ------------ Nothing Repaired ---------- Nothing Alien Tech Used ----------------- None Achievements -------------- None Challenges ------------ None Game ------ Seed ThermicStrikeTrap Manual? 0 Play Time 01:53:39 Cumulative 141.2 hours Start 2025.09.04 @ 22:55:24 End 2025.09.05 @ 19:58:53 Sessions 5 Manual Loads 0 Difficulty Rogue Special Mode None Game No. 52 Rogue 52 Adventurer 0 Explorer 0 Win Type - Total 2 Types 2/0/0/0/0/0/0/0/0/0 Lore% 53 Gallery% 55 Achievement% 48 Wizard Run 0 Options --------- Layout 1 ASCII 0 Keyboard 0 Movement Mouse Keybinds 0 Fullscreen 1 Font 32/Smallcaps Map View 50x35 Zoom Use 0% Tactical HUD 1 Map Filters NONE Filters NONE Steam 1 RUN: 78e94d33-3dc9-491a-807b-a20de7e73704